Cogmind - Beta 14 @@@ ROGUE MODE // 2024.08.31 @ 17:07:24 Player: gigi283 Result: Self-destructed Performance ------------- Evolutions (2) 1000 Regions Visited (4) 800 Robots Destroyed (60) 300 Value Destroyed (1212) 1212 Prototype IDs (4) 80 Alien Tech Used (0) 0 Bonus (-132) -132 TOTAL SCORE: 3260 Bonus ------- Friendly Fire -132 Cogmind --------- Core Integrity 507/550 Matter 226/300 Energy 300/300 System Corruption 4% Temperature Cool (0) Movement Rolling (105) Ox1 Location -8/Materials Parts ------- > --- POWER (2) -------- Nuclear Core Light Nuclear Core > --- PROPULSION (3) --- Wheel Compact Wheel > --- UTILITY (4) ------ Large Storage Unit Visual Processing Unit Improved Sensor Array ECM Suite > --- WEAPON (2) ------- Autogun Makeshift Shrapnel Gun > --- INVENTORY (15) --- Compact Wheel Compact Matter Pod (150) Structural Scanner Faulty Experimental Sensor Array Melee Analysis Suite Utility Shielding Heavy Laser EMP Blaster Mace Peak State ------------ > --- POWER ------------ Nuclear Core Light Nuclear Core > --- PROPULSION ------- Wheel Wheel Subdweller Monowheel > --- UTILITY ---------- Improved Heat Sink Large Storage Unit Visual Processing Unit Experimental Sensor Array > --- WEAPON ----------- Subdweller Machine Gun > --- INVENTORY -------- Wheel Compact Wheel Compact Wheel Compact Matter Pod Structural Scanner Melee Analysis Suite ECM Suite Utility Shielding Autogun Makeshift Shrapnel Gun EMP Blaster Mace [Rating: 29] Favorites ----------- Power Light Nuclear Core Engine Light Ion Engine Power Core Light Nuclear Core Propulsion Wheel Wheel Wheel Utility Large Storage Unit Device Structural Scanner Storage Large Storage Unit Processor Improved Targeting Computer Protection Core Shielding Weapon Heavy Assault Rifle Energy Gun Improved Medium Laser Ballistic Gun Heavy Assault Rifle Launcher Improved Grenade Launcher Impact Weapon Mace Build | -11 -10 -9 -9 -8 ------- Run | Yrd Mat Mat Min Mat Slots Evolved 4 | . . 2 . 2 Power 1 | . . 1 . . Propulsion 1 | . . . . 1 Utility 2 | . . 1 . 1 Weapon . | . . . . . Parts Attached 51 | 5 26 2 7 11 Power 6 | 1 3 1 . 1 Engine 2 | 1 1 . . . Core 4 | . 2 1 . 1 Reactor . | . . . . . Propulsion 18 | 2 12 . 1 3 Treads . | . . . . . Leg . | . . . . . Wheel 18 | 2 12 . 1 3 Hover . | . . . . . Flight . | . . . . . Utility 11 | . 4 1 3 3 Device 6 | . . 1 2 3 Storage 1 | . 1 . . . Processor 2 | . 1 . 1 . Hackware . | . . . . . Protection 2 | . 2 . . . Artifact . | . . . . . Weapon 16 | 2 7 . 3 4 Energy Gun 1 | . . . . 1 Energy Cannon . | . . . . . Ballistic Gun 10 | 2 5 . . 3 Ballistic Cannon . | . . . . . Launcher 3 | . 1 . 2 . Special Weapon . | . . . . . Impact Weapon 2 | . 1 . 1 . Slashing Weapon . | . . . . . Piercing Weapon . | . . . . . Special Melee Weapon . | . . . . . Unidentified Prototypes 2 | . . . . 2 Parts Lost 10 | . 5 . 2 3 Power 1 | . . . . 1 Propulsion 4 | . 2 . . 2 Utility 1 | . . . 1 . Weapon 4 | . 3 . 1 . Highest Loss Streak 3 | . 3 . 2 2 To Critical Strikes . | . . . . . Average Slot Usage (%) 94 | . 95 89 95 88 Engine 2 | . 5 . . . Core 14 | . 7 17 22 14 Wheel 24 | . 26 22 22 26 Device 6 | . . 5 11 14 Storage 9 | . 7 11 11 9 Processor 11 | . 12 11 11 9 Protection 2 | . 5 . . . Ballistic Gun 17 | . 24 11 11 14 Launcher 3 | . 1 . 7 . Impact Weapon 1 | . 1 11 . . Peak Build Rating 29 | 5 14 19 20 29 Average Rating 15 | 3 10 16 19 22 On Entrance 11 | . 5 14 19 20 Naked Turns . | . . . . . Heaviest Build 44 | 6 31 40 44 40 Greatest Support 46 | 26 36 30 30 46 Greatest Overweight (x) 2 | . 2 1 1 1 Average Overweight (x) . | . . 1 1 . Largest Inventory Capacity 15 | 5 15 15 15 15 Average Capacity 12 | 5 10 15 15 15 Most Carried 15 | 4 12 12 15 14 Average Carried 9 | 2 6 10 13 11 Final Capacity 15 | 5 15 15 15 15 Final Carried 14 | 3 9 12 14 9 Class Distribution -------------------- 53% | Scavenger-Mutant 46% | Mutant Dominant Class ---------------- Mutant | -10/Materials Scavenger-Mutant | -9/Materials Scavenger-Mutant | -9/Mines Scavenger-Mutant | -8/Materials Resources | -11 -10 -9 -9 -8 ----------- Run | Yrd Mat Mat Min Mat Matter Collected 1528 | 224 824 . 296 184 Remotely . | . . . . . Salvage Created 1783 | . 1206 17 343 217 Parts 121 | . 86 1 26 8 Haulers Intercepted 3 | . 2 . . 1 Recyclers Shooed 3 | . 2 . . 1 Parts Field Recycled . | . . . . . Retrieved Matter . | . . . . . Parts Self-Destructed . | . . . . . Prevented . | . . . . . Kills | -11 -10 -9 -9 -8 ------- Run | Yrd Mat Mat Min Mat Combat Hostiles Destroyed 36 | . 22 . 10 4 Melee 1 | . 1 . . . Guns 25 | . 20 . 1 4 AOE 9 | . 1 . 8 . Classes Destroyed 12 | . 8 . 3 1 Worker 8 | . 7 . 1 . Builder 2 | . 1 . 1 . Tunneler 2 | . . . 2 . Hauler 3 | . 2 . . 1 Recycler 3 | . 3 . . . Watcher 5 | . 3 1 . 1 Swarmer 12 | . 9 . 3 . Grunt 17 | . 11 . 3 3 Brawler 3 | . . . 3 . Protector 1 | . . . 1 . Sentry 1 | . . . . 1 Subdweller 2 | . 2 . . . Thug 1 | . . . 1 . Best Kill Streak 10 | . 6 1 10 2 Combat Bots Only 8 | . 5 . 8 2 Max Kills in Single Turn 3 | . 1 1 3 1 Gunslinging . | . . . . . Exploded 3 | . 1 . 3 . Melee 1 | . 1 . . . Uniques/NPCs Destroyed . | . . . . . Combat | -11 -10 -9 -9 -8 -------- Run | Yrd Mat Mat Min Mat Hostile Shots Fired 155 | . 109 . 10 36 Missed 30 | . 19 . 3 8 Damage Taken 1768 | . 972 . 416 380 Core 480 | . 237 . 200 43 Absorbed by Shields . | . . . . . Redirected to Shielding 17 | . 17 . . . Regen/Repaired (Parts) 58 | . 41 . . 17 Core Remaining (%) 51 | 100 5 . 50 . Volleys Fired 127 | . 93 3 10 21 Largest 2 | . 2 1 2 2 Hottest 66 | . 46 30 66 54 Shots Fired 236 | . 181 3 12 40 Gun 225 | . 178 3 4 40 Cannon . | . . . . . Launcher 11 | . 3 . 8 . Special . | . . . . . Kinetic 225 | . 178 3 4 40 Thermal . | . . . . . Explosive 11 | . 3 . 8 . Electromagnetic . | . . . . . Robot Hit Streak 12 | . 9 9 12 8 Robot Miss Streak 6 | . 6 . 2 5 Penetration Max . | . . . . . Secondary Targets . | . . . . . Shots Hit Robots 154 | . 109 3 11 31 Core Hits 87 | . 45 1 23 18 Critical Kills . | . . . . . Critical Parts Destroyed . | . . . . . Critical Strikes . | . . . . . Melee Attacks 9 | . 5 . 4 . Impact 9 | . 5 . 4 . Slashing . | . . . . . Piercing . | . . . . . Sneak Attacks 2 | . 2 . . . Combat Hostiles . | . . . . . Follow-up Attacks . | . . . . . Damage Inflicted 3416 | . 1965 77 842 532 Guns 2222 | . 1559 77 54 532 Cannons . | . . . . . Explosions 833 | . 150 . 683 . Melee 351 | . 256 . 95 . Ramming 10 | . . . 10 . Kinetic 2222 | . 1559 77 54 532 Thermal 37 | . . . 37 . Explosive 796 | . 150 . 646 . Electromagnetic . | . . . . . Impact 351 | . 256 . 95 . Slashing . | . . . . . Piercing . | . . . . . Highest Corruption 7 | . . . 7 4 Average Corruption 5 | . . . 7 4 Corruption Purged . | . . . . . Corruption Blocked . | . . . . . Effects 18 | . . . 11 7 Message Errors 4 | . . . 1 3 Matter Fused 1 | . . . 1 . Heat Flow Errors 6 | . . . 5 1 Parts Rejected 1 | . . . . 1 Data Loss (minor) 5 | . . . 3 2 Misfires 1 | . . . 1 . Overload Shots . | . . . . . Overflow Damage 92 | . 89 . 3 . Projectiles . | . . . . . Explosions . | . . . . . Melee 92 | . 89 . 3 . Knockbacks 3 | . 3 . . . Impact 2 | . 2 . . . Kinetic . | . . . . . Secondary 1 | . 1 . . . Self-Inflicted Damage 60 | . . . 60 . Shots 2 | . . . 2 . Rammed 3 | . . . 3 . Targets Rammed 3 | . . . 3 . Kicked . | . . . . . Crushed . | . . . . . Highest Temperature 236 | . 12 4 236 87 Average Temperature 44 | . 3 2 78 21 Received Heat Transfer 507 | . 306 . 39 162 Siege Activations . | . . . . . Robots Corrupted 2 | . 1 . 1 . Combat Hostiles 1 | . . . 1 . Parts Fried 1 | . 1 . . . Impact Corruptions 5 | . 4 . 1 . Robots Melted . | . . . . . Combat Hostiles . | . . . . . Parts Melted . | . . . . . Heat Transferred 50 | . . . 50 . Parts Sabotaged . | . . . . . Parts Stolen . | . . . . . Parts Stripped . | . . . . . Power Chain Reactions . | . . . . . Alert | -11 -10 -9 -9 -8 ------- Run | Yrd Mat Mat Min Mat Peak Influence 412 | . 412 167 232 198 Initial 145 | . . 145 64 39 Average 130 | . 177 158 89 98 Maximum Alert Level 2 | . 2 . 1 . Low Security (%) 75 | 100 52 100 89 100 Level 1 23 | . 46 . 10 . Level 2 . | . 1 . . . Level 3 . | . . . . . Level 4 . | . . . . . Level 5 . | . . . . . High Security . | . . . . . Max Security . | . . . . . Squads Dispatched 3 | . 2 . 1 . Investigation 2 | . 2 . . . Extermination . | . . . . . Reinforcement . | . . . . . Assault 1 | . . . 1 . Garrison . | . . . . . Intercept . | . . . . . Searches Triggered . | . . . . . Construction Impeded . | . . . . . Haulers Reinforced . | . . . . . Active Scanning Responses . | . . . . . Cargo Convoy Interrupts . | . . . . . Stealth | -11 -10 -9 -9 -8 --------- Run | Yrd Mat Mat Min Mat Distress Signals 2 | . . . . 2 Communications Jammed . | . . . . . Distress Signals . | . . . . . Times Spotted 55 | . 33 1 10 11 Peak Tracking Total 5 | . 5 1 5 3 Tactical Retreats 6 | . 3 . . 3 Traps | -11 -10 -9 -9 -8 ------- Run | Yrd Mat Mat Min Mat Traps Triggered 1 | . 1 . . . Indirectly . | . . . . . Trap Hack Attempts . | . . . . . Triggered . | . . . . . Disarmed . | . . . . . Reprogrammed . | . . . . . Reused . | . . . . . Traps Extracted . | . . . . . Installed . | . . . . . Triggered . | . . . . . Machines | -11 -10 -9 -9 -8 ---------- Run | Yrd Mat Mat Min Mat Machines Disabled 3 | . 1 . 2 . Max in Single Turn 1 | . 1 . 1 . Machines Repaired . | . . . . . Machines Dismantled . | . . . . . Machines Sabotaged . | . . . . . Overloaded Fab Kills . | . . . . . Hacking | -11 -10 -9 -9 -8 --------- Run | Yrd Mat Mat Min Mat Machines Accessed 4 | . 2 1 . 1 Terminals 2 | . 1 1 . . Fabricators . | . . . . . Repair Stations 2 | . 1 . . 1 Recycling Units . | . . . . . Scanalyzers . | . . . . . Garrison Access . | . . . . . Total Hacks 11 | . 6 1 . 4 Successful 7 | . 3 1 . 3 Failed 4 | . 3 . . 1 Catastrophic 1 | . . . . 1 Database Lockouts . | . . . . . Manual 1 | . 1 . . . Terminals 5 | . 4 1 . . Fabricators . | . . . . . Repair Stations 6 | . 2 . . 4 Recycling Units . | . . . . . Scanalyzers . | . . . . . Garrison Access . | . . . . . Terminal Hacks 2 | . 1 1 . . Prototype ID Bank 1 | . . 1 . . Zone Layout 1 | . 1 . . . Fabricator Hacks . | . . . . . Repair Station Hacks 5 | . 2 . . 3 Scan Component 3 | . 1 . . 2 Repair 2 | . 1 . . 1 Recycling Unit Hacks . | . . . . . Scanalyzer . | . . . . . Garrison Access Hacks . | . . . . . Unauthorized Hacks . | . . . . . Terminals . | . . . . . Fabricators . | . . . . . Repair Stations . | . . . . . Recycling Units . | . . . . . Scanalyzers . | . . . . . Garrison Access . | . . . . . Data Cores Recovered . | . . . . . Used . | . . . . . Hacking Detections 1 | . . . . 1 Full Trace Events . | . . . . . Feedback Events . | . . . . . Feedback Blocked . | . . . . . Robot Schematics Acquired . | . . . . . Robots Built . | . . . . . Authchips . | . . . . . Time . | . . . . . Total Robot Build Rating . | . . . . . Part Schematics Acquired . | . . . . . Parts Built . | . . . . . Authchips . | . . . . . Time . | . . . . . Total Part Build Rating . | . . . . . Parts Repaired 2 | . 1 . . 1 Time 64 | . 38 . . 26 Parts Recycled . | . . . . . Recycled Matter . | . . . . . Retrieved Matter . | . . . . . Retrieved Components . | . . . . . Parts Scanalyzed . | . . . . . Part Schematics Acquired . | . . . . . Parts Damaged . | . . . . . Bothacking | -11 -10 -9 -9 -8 ------------ Run | Yrd Mat Mat Min Mat Used RIF Installer . | . . . . . Robots Hacked . | . . . . . Non-combat . | . . . . . Combat . | . . . . . Robot Hacks Applied . | . . . . . Relay Couplers Released . | . . . . . Fabnet Peak Effective % . | . . . . . Robots Rewired . | . . . . . Allies Hacked . | . . . . . Hacks Repelled . | . . . . . Allies | -11 -10 -9 -9 -8 -------- Run | Yrd Mat Mat Min Mat Total Allies 1 | . . . 1 . Largest Group 1 | . . . 1 . Highest-Rated Group 31 | . . . 31 . Highest-Rated Ally 31 | . . . 31 . Total Orders . | . . . . . Ally Attacks 7 | . . . 7 . Total Damage 83 | . . . 83 . Kills . | . . . . . Allies Corrupted . | . . . . . Allies Melted . | . . . . . Intel | -11 -10 -9 -9 -8 ------- Run | Yrd Mat Mat Min Mat Robot Analysis Total . | . . . . . Derelict Logs Recovered 1 | . . . 1 . Drone Launches . | . . . . . Drone Recoveries . | . . . . . Exploration | -11 -10 -9 -9 -8 ------------- Run | Yrd Mat Mat Min Mat Turns Passed 3242 | 93 1412 191 1158 388 Spaces Moved 2358 | 89 1023 167 859 220 Core 4 | 4 . . . . Treads . | . . . . . Legs . | . . . . . Wheels 2354 | 85 1023 167 859 220 Hover . | . . . . . Flight . | . . . . . Fastest Speed 50 | 50 80 107 107 90 Average Speed 98 | 89 91 107 107 92 Slowest Speed 115 | 100 115 107 107 107 Overloaded Moves . | . . . . . Propulsion Burnouts . | . . . . . Robots Hopped . | . . . . . Cave-ins Triggered 1 | . . . 1 . Exploration Rate (%) 45 | 4 93 14 99 15 Regions Visited 4 Branch Regions 1 Pre-discovered Areas 1 | . . . 1 . Known Exits Taken . | . . . . . Unknown Exits Taken 4 | 1 1 1 1 . Scrap Searched 2 | . . . 2 . Spaces Dug . | . . . . . Terrain Destroyed 109 | . 17 . 90 2 Melee . | . . . . . Projectile 2 | . . . . 2 AOE 107 | . 17 . 90 . Terrain Rammed . | . . . . . Walls Destroyed . | . . . . . Machines Disabled . | . . . . . Actions | -11 -10 -9 -9 -8 --------- Run | Yrd Mat Mat Min Mat Total 3040 | 103 1313 176 1079 369 Wait 411 | . 122 . 185 104 Move 2354 | 88 1022 166 858 220 Hop . | . . . . . Pick Up 56 | 9 28 5 7 7 Fast Attach 1 | . 1 . . . Attach 28 | 5 10 2 2 9 Detach 2 | . . . 1 1 Swap 22 | . 15 . 5 2 Drop 27 | 1 17 . 4 5 Fire 127 | . 93 3 10 21 Melee 9 | . 5 . 4 . Ram 3 | . . . 3 . Kick . | . . . . . Crush . | . . . . . Escape Stasis . | . . . . . Rewire . | . . . . . Trap . | . . . . . Miscellaneous . | . . . . . Route ------- -11/Scrapyard -10/Materials (discovered 4 exits: *Mat x3 / [*Min]) -9/Materials -9/Mines (discovered 2 exits: *Mat x2) -8/Materials (discovered 1 exit: [*Fac]) History --------- Turn | Location | Event 2 | -11/Scrapyard | Met Revision 17 12 | -11/Scrapyard | Discovered new exit (range 15) 94 | -11/Scrapyard | Entered Materials 179 | -10/Materials | Discovered new exit (range 5) 311 | -10/Materials | Build established: Mutant 406 | -10/Materials | Discovered new exit (range 5) 492 | -10/Materials | Discovered new exit (range 13) 872 | -10/Materials | Discovered new exit (range 14) 1194 | -10/Materials | Derelicts attacked the area 1218 | -10/Materials | Core integrity fell below 50% 1340 | -10/Materials | Lost 3 parts (1n2w) 1377 | -10/Materials | Repaired Lgt. Nuclear Core 1390 | -10/Materials | Core integrity fell below 20% 1506 | -10/Materials | Entered another Materials area 1506 | -9/Materials | Evolved 2 slots: Power x1, Utility x1 1658 | -9/Materials | Discovered new exit (range 9) 1697 | -9/Materials | Entered Mines 1718 | -9/Mines | Build established: Scavenger-Mutant 1750 | -9/Mines | A weapon hastily lodged in a ceiling crevice suddenly fell to the ground 1968 | -9/Mines | Met a Derelict testing a Signal Generator 1994 | -9/Mines | Discovered new exit (range 10) 2391 | -9/Mines | Destroyed 8 combat bots 2453 | -9/Mines | Crushed by falling debris 2657 | -9/Mines | Found a damaged Exp. Sensor Array with a note attached 2659 | -9/Mines | Found Prototype Device 2831 | -9/Mines | Discovered new exit (range 4) 2855 | -9/Mines | Entered Materials 2855 | -8/Materials | Evolved 2 slots: Propulsion x1, Utility x1 2856 | -8/Materials | Identified Exp. Sensor Array 3127 | -8/Materials | Repaired Structural Scanner 3233 | -8/Materials | Discovered new exit (range 5) 3243 | -8/Materials | Self-destructed Last Messages --------------- 03153_ R-06 Scavenger collects Sub. Machine Gun. 03156_ G-47 Trooper destroyed. 03159_ Acquired 41 matter. 03161_ Acquired Lgt. Nuclear Core. 03163_ K-01 Serf collects debris. 03165_ Dropped Wheel. 03166_ K-01 Serf collects debris. 03176_ System corrupted: Component data lost. 03177_ K-01 Serf collects debris. 03181_ A-02 Transporter destroyed. 03185_ Acquired Prototype Energy Gun. 03189_ Identified Imp. Medium Laser. 03191_ Dropped Faulty Imp. Medium Laser. 03191_ Dropped Imp. Medium Laser. 03192_ Acquired 53 matter. 03204_ K-01 Serf collects debris. 03209_ System corrupted: Heat flow error (+104). 03226_ %D&M9POO NLGTPI7CI2CA2=3KK3JI3OLYWK2USRC 03233_ EXIT=FOUND 03234_ Sub. Monowheel destroyed. Map ----- +----------------------------------------------------+ | ????????????????????????? ? ????????????? | | ????????????????????????# ????????????? | | ????????????????????????# " #???????????? | | ????????????????????????# ^ T #???????????? | | ????????????????????????+ " #???????????? | | ????????????????????????# #???????????? | | ????????????############# #???????????? | | ?########???# """ #???????????? | | ?# % #???# """ #???????????? | | ?# #### #???# """ #???????????? | | ?# #??#!#???# #???????????? | | ?# #??# #???# #???????????? | | ## #??# #???# """ #???????????? | | #?## ##??# """ #???????????? | | +#+### !#### ? """ +???????????? | | ## [[[ #???????????? | | """ ##[[ ##+######## #???????????? | | """ ###[##== #??########### #???????????? | | """ #?# ##! """#????????????# #???????????? | | #?# ## R"#????######### #???????????? | | #?# ## """#????# ## #???????????? | | #?# ## #????#! ## #???????????? | | #####?# ## #????# ## #???????????? | | ??????# #########????# ## #???????????? | | ??????# #????????????# ## #???????????? | | ??????? ?????????????# @ ## #???????????? | | ??????? ????????#########/#### #####???????? | | ??????? ?# #???????? | | ??????? ?# < #???????? | | ??????? ?# #???????? | | ??????? ?# ###/######+### #####???????? | | ??????? ?##?????# ??????????# #???????????? | | ??????? ????????????????????# #???????????? | | ????????????????????????????# +???????????? | | ????????????????????????????# #???????????? | | ????????????????????????????# #???????????? | | ????????????????????????????# #???????????? | | ????????????????????????????# #???????????? | | ????????????????????????????# #???????????? | | ????????????????????????????# #???????????? | | ????????????????????????????# #???????????? | | ????????????????????????????# #???????????? | | ????????????????????????????? +???????????? | | ????????????????????????????? #???????????? | | ????????????????????????????? ????????????? | | ????????????????????????????????????????????? | | ????????????????????????????????????????????? | | ????????????????????????????????????????????? | | ????????????????????????????????????????????? | | ????????????????????????????????????????????? | +----------------------------------------------------+ Best States ------------- Heat Dissipation 45 Energy Generation 23 Energy Capacity 300 Matter Stores 300 Matter Capacity 300 Sight Range 18 Robot Scan Range 15 Terrain Scan Density 10 ECM Strength 1 Core Shielding 20 Utility Shielding 33 Evasion (%) 44 Targeting Accuracy 6 Item Schematics ----------------- None Robot Schematics ------------------ None Fabricated ------------ Nothing Alien Tech Used ----------------- None Achievements -------------- None Challenges ------------ None Game ------ Seed ControlBombardmentPick Manual? 0 Play Time 00:31:29 Cumulative 48.0 hours Start 2024.08.31 @ 16:37:15 End 2024.08.31 @ 17:07:24 Sessions 1 Manual Loads 0 Difficulty Rogue Special Mode None Game No. 65 Rogue 65 Adventurer 0 Explorer 0 Win Type - Total 0 Types 0/0/0/0/0/0/0/0/0 Lore% 13 Gallery% 30 Achievement% 27 Wizard Run 0 Options --------- Layout 1 ASCII 0 Keyboard 0 Movement Arrows Keybinds 0 Fullscreen 1 Font 16/SmallcapsGlow Map View 50x40 Zoom Use 0% Tactical HUD 1 Map Filters NONE Filters NONE Steam SD RUN: 0354a928-d85a-416f-b355-773dcc6a9279